Cogmind - Beta 16.1 @@@ ROGUE MODE // 2026.02.17 @ 17:15:07 Player: Megaknight51 Result: Destroyed by DAS Turret with DAS Cannon Performance ------------- Evolutions (1) 500 Regions Visited (5) 1000 Robots Destroyed (79) 395 Value Destroyed (1821) 1821 Prototype IDs (8) 160 Alien Tech Used (0) 0 Bonus (-225) -225 TOTAL SCORE: 3651 Bonus ------- High Alert Combat Kills 6 Friendly Fire -231 Cogmind --------- Core Integrity 0/400 Matter 28/300 Energy 99/100 System Corruption 14% Temperature Cool (0) Movement Rolling (125) Ox3 Location -9/Exiles Parts ------- > --- POWER (1) -------- (None) > --- PROPULSION (2) --- Armored Wheel > --- UTILITY (3) ------ High-capacity Storage Unit > --- WEAPON (3) ------- Missile Launcher > --- INVENTORY (20) --- Heavy Ion Engine Heavy Ion Engine Compact Wheel Armored Wheel Large Storage Unit Signal Interpreter Signal Interpreter Improved Terrain Scanner Improved Targeting Computer Heavy Assault Rifle Heavy Assault Rifle Plasma Cutter Katana Peak State ------------ > --- POWER ------------ Heavy Ion Engine > --- PROPULSION ------- Armored Wheel Armored Wheel > --- UTILITY ---------- Improved Heat Sink Large Storage Unit Improved Terrain Scanner > --- WEAPON ----------- Shock Rifle Shock Rifle Shock Rifle > --- INVENTORY -------- Heavy Ion Engine Heavy Ion Engine Wheel Wheel Armored Wheel Armored Wheel Medium Storage Unit Signal Interpreter Improved Targeting Computer Light Armor Plating Light Armor Plating Light Armor Plating Medium Laser Small Laser Mining Laser [Rating: 25] Favorites ----------- Power Heavy Ion Engine Engine Heavy Ion Engine Power Core Light Nuclear Core Propulsion Armored Wheel Wheel Armored Wheel Utility Improved Heat Sink Device Improved Heat Sink Storage High-capacity Storage Unit Protection Medium Armor Plating Weapon Heavy Assault Rifle Energy Gun Heavy EM Pulse Gun Ballistic Gun Heavy Assault Rifle Launcher Missile Launcher Special Weapon Mining Laser Impact Weapon Heavy Hammer Slashing Weapon Katana Build | -11 -10 -10 -9 -9 -9 ------- Run | Yrd Mat Min Mat Min Exi Slots Evolved 2 | . . . 2 . . Power . | . . . . . . Propulsion . | . . . . . . Utility 1 | . . . 1 . . Weapon 1 | . . . 1 . . Parts Attached 53 | 7 9 . 27 . 10 Power 4 | 1 . . 1 . 2 Engine 3 | 1 . . 1 . 1 Core 1 | . . . . . 1 Reactor . | . . . . . . Propulsion 11 | 2 2 . 5 . 2 Treads . | . . . . . . Leg . | . . . . . . Wheel 11 | 2 2 . 5 . 2 Hover . | . . . . . . Flight . | . . . . . . Utility 14 | 2 3 . 7 . 2 Device 5 | 1 1 . 2 . 1 Storage 3 | 1 1 . 1 . . Processor . | . . . . . . Hackware . | . . . . . . Protection 6 | . 1 . 4 . 1 Artifact . | . . . . . . Weapon 24 | 2 4 . 14 . 4 Energy Gun 12 | 2 3 . 6 . 1 Energy Cannon . | . . . . . . Ballistic Gun 5 | . . . 5 . . Ballistic Cannon . | . . . . . . Launcher 3 | . . . 1 . 2 Special Weapon 2 | . 1 . . . 1 Impact Weapon 1 | . . . 1 . . Slashing Weapon 1 | . . . 1 . . Piercing Weapon . | . . . . . . Special Melee Weapon . | . . . . . . Unidentified Prototypes . | . . . . . . Corrupted Parts 2 | . . . 2 . . System Corruption 13 | . . . 13 . . Parts Lost 24 | . 2 . 9 . 13 Power 3 | . . . . . 3 Propulsion 5 | . . . 2 . 3 Utility 7 | . 1 . 2 . 4 Weapon 9 | . 1 . 5 . 3 Highest Loss Streak 11 | . 1 . 2 . 11 To Critical Strikes 1 | . . . . . 1 Average Backups 16 | 3 9 15 18 20 19 Power 1 | . . . 2 4 3 Propulsion 3 | 1 2 4 4 4 3 Utility 6 | . 2 7 7 7 6 Weapon 3 | . 4 4 3 4 4 Tool/Special . | . . . . . . Unused Backups 13 | . 1 . 6 . 6 Power 2 | . . . . . 2 Propulsion 3 | . 1 . 1 . 1 Utility 6 | . . . 3 . 3 Weapon 2 | . . . 2 . . Tool/Special . | . . . . . . Average Slot Usage (%) 98 | . 97 100 98 100 97 Engine 11 | . 14 14 11 11 10 Wheel 23 | . 28 28 21 22 22 Device 11 | . 11 7 12 11 10 Storage 11 | . 14 14 11 11 11 Protection 7 | . . 6 9 11 10 Energy Gun 17 | . 24 28 17 . . Ballistic Gun 12 | . . . 13 33 29 Peak Build Rating 25 | 7 14 15 25 22 22 Average Rating 17 | 5 10 14 21 22 21 On Entrance 12 | . 7 13 13 22 22 Avg Prop Armor Cover (%) . | . . . . . . Naked Turns . | . . . . . . Heaviest Build 66 | 12 32 32 66 65 65 Greatest Support 28 | 26 26 24 24 22 28 Greatest Overweight (x) 5 | . 1 1 5 2 3 Average Overweight (x) 1 | . . 1 1 2 1 Largest Inventory Capacity 20 | 8 15 15 20 20 20 Average Capacity 17 | 7 11 15 19 20 20 Most Carried 20 | 5 15 15 20 20 20 Average Carried 16 | 3 9 15 18 20 19 Final Capacity 20 | 8 15 15 20 20 20 Final Carried 20 | 5 15 15 20 20 13 Class Distribution -------------------- 38% | Mutant 29% | Scavenger-Tank 22% | Tank 7% | Skirmisher Dominant Class ---------------- Mutant | -10/Materials Mutant | -10/Mines Tank | -9/Materials Scavenger-Tank | -9/Mines Scavenger-Tank | -9/Exiles Resources | -11 -10 -10 -9 -9 -9 ----------- Run | Yrd Mat Min Mat Min Exi Matter Collected 1352 | 270 145 30 757 59 91 Remotely . | . . . . . . Salvage Created 2775 | 208 602 . 1771 75 119 Parts 177 | 16 31 . 123 3 4 Haulers Intercepted 4 | . 1 . 3 . . Recyclers Shooed 1 | 1 . . . . . Parts Field Recycled . | . . . . . . Retrieved Matter . | . . . . . . Parts Self-Destructed . | . . . . . . Prevented . | . . . . . . Parts Restored . | . . . . . . Kills | -11 -10 -10 -9 -9 -9 ------- Run | Yrd Mat Min Mat Min Exi Combat Hostiles Destroyed 58 | . 14 . 36 2 6 Guns 48 | . 11 . 32 2 3 AOE 7 | . 2 . 2 . 3 Classes Destroyed 12 | 3 4 . 4 . 1 Worker 4 | 2 . . 2 . . Builder 1 | . . . 1 . . Tunneler 8 | 7 . . 1 . . Hauler 4 | . 1 . 3 . . Recycler 2 | 1 . . 1 . . Operator 5 | . 1 . 4 . . Swarmer 13 | . 3 . 10 . . Grunt 31 | . 11 . 15 2 3 Brawler 1 | . . . 1 . . Duelist 1 | . . . 1 . . Sentry 9 | . . . 9 . . Assembled 6 | . . . . . 6 Best Kill Streak 6 | 3 3 . 6 2 6 Combat Bots Only 6 | . 3 . 5 2 6 Max Kills in Single Turn 3 | 1 3 . 2 1 3 Gunslinging 1 | . . . 1 . . Exploded 2 | . 2 . 1 . 1 Melee . | . . . . . . Uniques/NPCs Destroyed 1 | . . . . . 1 EX-BIN (-9/Exiles) Combat | -11 -10 -10 -9 -9 -9 -------- Run | Yrd Mat Min Mat Min Exi Hostile Shots Fired 279 | . 38 . 159 7 75 Missed 82 | . 12 . 39 2 29 Hits 197 | . 26 . 120 5 46 Melee 5 | . . . 3 . 2 Projectile 192 | . 26 . 117 5 44 Critical Strikes 12 | . . . 2 . 10 Damage Taken 3000 | . 310 . 1541 55 1094 Core 549 | . 109 . 139 12 289 Absorbed by Shields 43 | . . . . . 43 Regen/Repaired (Parts) 72 | . . . 72 . . Core Remaining (%) 78 | 100 . 56 . . . Volleys Fired 170 | 22 39 . 84 4 21 Largest 3 | 2 2 . 3 3 3 Hottest 150 | 90 100 . 150 69 137 Shots Fired 405 | 44 69 . 232 13 47 Gun 375 | 44 60 . 231 13 27 Cannon . | . . . . . . Launcher 16 | . . . 1 . 15 Special 14 | . 9 . . . 5 Kinetic 133 | . . . 97 13 23 Thermal 80 | 44 9 . 18 . 9 Explosive 16 | . . . 1 . 15 Electromagnetic 176 | . 60 . 116 . . Robot Hit Streak 13 | 13 8 . 12 5 8 Robot Miss Streak 7 | 2 3 . 7 3 4 Penetration Max . | . . . . . . Secondary Targets 8 | . 1 . 6 1 . Max Gunslinging Chain 1 | . 1 . 1 1 . Shots Hit Robots 230 | 31 35 . 133 7 24 Core Hits 115 | 11 18 . 63 3 20 Critical Kills 2 | . . . 2 . . Critical Parts Destroyed . | . . . . . . Critical Strikes 9 | 2 2 . 5 . . Burn 2 | 2 . . . . . Destroy 2 | . . . 2 . . Corrupt 5 | . 2 . 3 . . Melee Attacks 4 | . . . 4 . . Impact 2 | . . . 2 . . Slashing 2 | . . . 2 . . Piercing . | . . . . . . Sneak Attacks 2 | . . . 2 . . Combat Hostiles . | . . . . . . Follow-up Attacks . | . . . . . . Damage Inflicted 3999 | 391 667 . 2279 118 544 Guns 3276 | 391 557 . 1993 118 217 Cannons . | . . . . . . Explosions 597 | . 110 . 160 . 327 Melee 126 | . . . 126 . . Ramming . | . . . . . . Kinetic 1097 | . . . 765 118 214 Thermal 766 | 391 110 . 262 . 3 Explosive 351 | . . . 24 . 327 Electromagnetic 1659 | . 557 . 1102 . . Impact . | . . . . . . Slashing 126 | . . . 126 . . Piercing . | . . . . . . Highest Corruption 14 | . . . 14 14 14 Average Corruption 11 | . . . 11 14 14 Corruption Purged . | . . . . . . Corruption Blocked . | . . . . . . Effects 132 | . . . 100 7 25 Message Errors 32 | . . . 21 3 8 Matter Fused 22 | . . . 15 2 5 Heat Flow Errors 20 | . . . 16 1 3 Energy Discharges 12 | . . . 10 . 2 Parts Rejected 2 | . . . 2 . . Data Loss (minor) 18 | . . . 14 . 4 Data Loss (major) 8 | . . . 8 . . Misfires 7 | . . . 5 1 1 Alerts 3 | . . . 2 . 1 Misdirections 3 | . . . 3 . . Weapon Failures 5 | . . . 4 . 1 Overload Shots . | . . . . . . Overflow Damage 51 | . 8 . 36 . 7 Projectiles . | . . . . . . Explosions 23 | . 8 . 8 . 7 Melee 28 | . . . 28 . . Knockbacks . | . . . . . . Impact . | . . . . . . Kinetic . | . . . . . . Secondary . | . . . . . . Self-Inflicted Damage 94 | . . . 50 . 44 Shots 3 | . . . 2 . 1 Rammed . | . . . . . . Targets Rammed . | . . . . . . Kicked . | . . . . . . Crushed . | . . . . . . Highest Temperature 248 | 160 210 . 248 146 188 Average Temperature 60 | 67 47 . 63 57 79 Received Heat Transfer 744 | . 141 . 513 30 60 Siege Activations . | . . . . . . Martial Activations . | . . . . . . Shielding Activations . | . . . . . . Robots Disrupted . | . . . . . . Combat Hostiles . | . . . . . . Robots Corrupted 3 | . 1 . 2 . . Combat Hostiles 3 | . 1 . 2 . . Parts Fried 6 | . 1 . 5 . . Impact Corruptions . | . . . . . . Robots Melted . | . . . . . . Combat Hostiles . | . . . . . . Parts Melted 5 | 4 . . . . 1 Heat Transferred 1787 | 1177 100 . 483 . 27 Parts Sabotaged . | . . . . . . Parts Stolen . | . . . . . . Parts Stripped . | . . . . . . Power Chain Reactions 4 | . 1 . 3 . . Alert | -11 -10 -10 -9 -9 -9 ------- Run | Yrd Mat Min Mat Min Exi Maximum Alert Level 2 | . 1 . 2 1 . Low Security (%) 72 | 100 71 100 64 80 . Level 1 16 | . 28 . 17 19 . Level 2 10 | . . . 18 . . Level 3 . | . . . . . . Level 4 . | . . . . . . Level 5 . | . . . . . . High Security . | . . . . . . Max Security . | . . . . . . Peak Influence 453 | 10 264 81 453 210 . Initial 170 | . . 81 . 170 . Average 118 | 1 96 13 155 170 . Influence Increases 1837 | 50 541 . 1206 40 . Destroy 0b10 Robot/C 1040 | . 280 . 720 40 . Destroy 0b10 Robot/NC 120 | 50 10 . 60 . . Destroy Leader 268 | . 62 . 206 . . Successful Hack 70 | . 41 . 29 . . Select Force Hacks 120 | . 60 . 60 . . Disable Machine 90 | . 15 . 75 . . Destroy Structure 39 | . 13 . 26 . . Lose Combat Pursuer 90 | . 60 . 30 . . Influence Decreases 1837 | 50 331 210 769 347 130 Entered New Map 526 | . . 129 . 267 130 Time Decay 1008 | 50 263 81 534 80 . Lost Part 105 | . 20 . 85 . . Purge Threat 198 | . 48 . 150 . . Squads Dispatched 14 | . 6 . 8 . . Investigation 7 | . 4 . 3 . . Extermination . | . . . . . . Reinforcement 6 | . 2 . 4 . . Assault 1 | . . . 1 . . Garrison . | . . . . . . Intercept . | . . . . . . Searches Triggered . | . . . . . . Construction Impeded . | . . . . . . Haulers Reinforced . | . . . . . . Active Scanning Responses . | . . . . . . Cargo Convoy Interrupts . | . . . . . . Stealth | -11 -10 -10 -9 -9 -9 --------- Run | Yrd Mat Min Mat Min Exi Distress Signals 8 | . 3 . 5 . . Communications Jammed . | . . . . . . Distress Signals . | . . . . . . Times Spotted 93 | . 26 . 54 5 8 Peak Tracking Total 9 | . 7 . 7 3 9 Tactical Retreats 5 | . 3 . 1 . 1 Traps | -11 -10 -10 -9 -9 -9 ------- Run | Yrd Mat Min Mat Min Exi Traps Triggered 3 | . 1 . 2 . . Indirectly . | . . . . . . Trap Hack Attempts . | . . . . . . Triggered . | . . . . . . Disarmed . | . . . . . . Reprogrammed . | . . . . . . Reused . | . . . . . . Traps Extracted . | . . . . . . Installed . | . . . . . . Triggered . | . . . . . . Machines | -11 -10 -10 -9 -9 -9 ---------- Run | Yrd Mat Min Mat Min Exi Machines Disabled 10 | . 1 . 5 . 4 Max in Single Turn 1 | . 1 . 1 . 1 Machines Repaired . | . . . . . . Machines Dismantled . | . . . . . . Machines Sabotaged . | . . . . . . Overloaded Fab Kills . | . . . . . . Hacking | -11 -10 -10 -9 -9 -9 --------- Run | Yrd Mat Min Mat Min Exi Machines Accessed 22 | . 8 . 14 . . Terminals 15 | . 6 . 9 . . Fabricators . | . . . . . . Repair Stations 1 | . . . 1 . . Recycling Units 4 | . 2 . 2 . . Scanalyzers 2 | . . . 2 . . Garrison Access . | . . . . . . Total Hacks 80 | . 31 . 49 . . Successful 54 | . 21 . 33 . . Failed 26 | . 10 . 16 . . Catastrophic 6 | . . . 6 . . Database Lockouts . | . . . . . . Manual 47 | . 18 . 28 . 1 Terminals 56 | . 29 . 27 . . Fabricators . | . . . . . . Repair Stations 6 | . . . 6 . . Recycling Units 4 | . 2 . 2 . . Scanalyzers 14 | . . . 14 . . Garrison Access . | . . . . . . Terminal Hacks 18 | . 13 . 5 . . Prototype ID Bank 8 | . 6 . 2 . . Branch Access Points 2 | . 1 . 1 . . Terminal Index 1 | . 1 . . . . Recycling Unit Index 1 | . 1 . . . . Unreport Threat 3 | . 2 . 1 . . Hauler Manifests 2 | . 1 . 1 . . Registered Components 1 | . 1 . . . . Fabricator Hacks . | . . . . . . Repair Station Hacks 4 | . . . 4 . . Scan Component 2 | . . . 2 . . Repair 2 | . . . 2 . . Recycling Unit Hacks . | . . . . . . Scanalyzer 14 | . . . 14 . . Insert Component 2 | . . . 2 . . Analyze 2 | . . . 2 . . Retrieve Study 10 | . . . 10 . . Garrison Access Hacks . | . . . . . . Unauthorized Hacks 18 | . 8 . 10 . . Terminals 14 | . 6 . 8 . . Botnet 14 | . 6 . 8 . . Fabricators . | . . . . . . Repair Stations . | . . . . . . Recycling Units 4 | . 2 . 2 . . Tunnel 4 | . 2 . 2 . . Scanalyzers . | . . . . . . Garrison Access . | . . . . . . Data Cores Recovered 1 | . 1 . . . . Used . | . . . . . . Hacking Detections 16 | . 5 . 11 . . Full Trace Events 2 | . . . 2 . . Feedback Events 1 | . . . 1 . . Corruption 1 | . . . 1 . . Feedback Blocked . | . . . . . . Robot Schematics Acquired . | . . . . . . Robots Built . | . . . . . . Authchips . | . . . . . . Time . | . . . . . . Total Robot Build Rating . | . . . . . . Part Schematics Acquired 2 | . . . 2 . . Parts Built . | . . . . . . Authchips . | . . . . . . Time . | . . . . . . Total Part Build Rating . | . . . . . . Part Studies Acquired 10 | . . . 10 . . Parts Repaired 2 | . . . 2 . . Time 70 | . . . 70 . . Parts Recycled . | . . . . . . Recycled Matter . | . . . . . . Retrieved Matter . | . . . . . . Retrieved Components . | . . . . . . Parts Scanalyzed 2 | . . . 2 . . Part Schematics Acquired 2 | . . . 2 . . Parts Damaged . | . . . . . . Bothacking | -11 -10 -10 -9 -9 -9 ------------ Run | Yrd Mat Min Mat Min Exi Used RIF Installer . | . . . . . . Robots Hacked . | . . . . . . Non-combat . | . . . . . . Combat . | . . . . . . Robot Hacks Applied . | . . . . . . Relay Couplers Released . | . . . . . . Fabnet Peak Effective % . | . . . . . . Robots Rewired . | . . . . . . Allies Hacked . | . . . . . . Hacks Repelled . | . . . . . . Allies | -11 -10 -10 -9 -9 -9 -------- Run | Yrd Mat Min Mat Min Exi Total Allies 3 | . . . . 3 . Largest Group 3 | . . . . 3 3 Highest-Rated Group 40 | . . . . 40 40 Highest-Rated Ally 16 | . . . . 16 16 Total Orders . | . . . . . . Ally Attacks 32 | . . . . . 32 Total Damage 229 | . . . . . 229 Kills 2 | . . . . . 2 Allies Corrupted . | . . . . . . Allies Melted . | . . . . . . Intel | -11 -10 -10 -9 -9 -9 ------- Run | Yrd Mat Min Mat Min Exi Active Infowar (turns) 1465 | 5 765 299 396 . . Terrain 701 | . 6 299 396 . . Seismic 764 | 5 759 . . . . Robot Analysis Total . | . . . . . . Derelict Logs Recovered . | . . . . . . Drone Launches . | . . . . . . Drone Recoveries . | . . . . . . Exploration | -11 -10 -10 -9 -9 -9 ------------- Run | Yrd Mat Min Mat Min Exi Turns Passed 5157 | 251 967 540 2614 172 613 Spaces Moved 3423 | 122 717 239 1708 131 506 Core 5 | 5 . . . . . Treads . | . . . . . . Legs . | . . . . . . Wheels 3418 | 117 717 239 1708 131 506 Hover . | . . . . . . Flight . | . . . . . . Fastest Speed 50 | 50 90 105 105 105 100 Average Speed 105 | 88 97 105 110 105 105 Slowest Speed 155 | 100 105 105 155 105 125 Overloaded Moves . | . . . . . . Propulsion Burnouts . | . . . . . . Robots Hopped . | . . . . . . Potential Cave-ins . | . . . . . . Cave-ins Triggered . | . . . . . . Exploration Rate (%) 62 | 4 96 49 93 43 90 Regions Visited 5 Branch Regions 3 Pre-discovered Areas 4 | . 2 . 2 . . Known Exits Taken 2 | . 1 . 1 . . Unknown Exits Taken 3 | 1 . 1 . 1 . Scrap Searched 1 | . . 1 . . . Spaces Dug 8 | . 7 . 1 . . Terrain Destroyed 68 | . 11 . 21 . 36 Melee 1 | . . . 1 . . Projectile 7 | . 7 . . . . AOE 60 | . 4 . 20 . 36 Terrain Rammed . | . . . . . . Walls Destroyed . | . . . . . . Machines Disabled . | . . . . . . Actions | -11 -10 -10 -9 -9 -9 --------- Run | Yrd Mat Min Mat Min Exi Total 4598 | 216 896 527 2264 156 539 Wait 857 | 61 106 287 381 22 . Move 3418 | 121 716 238 1707 130 506 Hop . | . . . . . . Pick Up 40 | 5 13 . 22 . . Fast Attach 18 | 7 1 . 10 . . Attach 17 | . 2 . 8 . 7 Detach 1 | . 1 . . . . Swap 45 | . 13 2 26 . 4 Drop 27 | . 5 . 22 . . Fire 170 | 22 39 . 84 4 21 Melee 4 | . . . 4 . . Ram . | . . . . . . Kick . | . . . . . . Crush . | . . . . . . Escape Stasis . | . . . . . . Rewire . | . . . . . . Trap . | . . . . . . Miscellaneous 1 | . . . . . 1 Route ------- -11/Scrapyard -10/Materials (discovered 4 exits: *Mat x2 / *Min / [*Sub]) -10/Mines -9/Materials (discovered 4 exits: [*Mat x3] / *Min) -9/Mines (discovered 2 exits: [*Mat] / *Exi) -9/Exiles (discovered 1 exit: [*Min]) History --------- Turn | Location | Event 57 | -11/Scrapyard | Discovered new exit (range 15) 252 | -11/Scrapyard | Entered Materials 306 | -10/Materials | Build established: Mutant 350 | -10/Materials | Discovered new exit (range 10) 486 | -10/Materials | Discovered new exit (range 12) 534 | -10/Materials | Identified exit to Mines 755 | -10/Materials | Discovered new exit (range 4) 1219 | -10/Materials | Entered Mines 1226 | -10/Mines | Found a hidden stash of uninstalled traps 1751 | -10/Mines | Discovered new exit (range 9) 1759 | -10/Mines | Entered Materials 1759 | -9/Materials | Evolved 2 slots: Utility x1, Weapon x1 1760 | -9/Materials | System corruption reached 10% 1904 | -9/Materials | Met 8R-AWN 2101 | -9/Materials | Build established: Skirmisher 2502 | -9/Materials | Discovered new exit (range 16) 2625 | -9/Materials | Build established: Tank 2971 | -9/Materials | Discovered new exit (range 5) 3153 | -9/Materials | Discovered new exit (range 12) 3632 | -9/Materials | Discovered new exit (range 3) 3830 | -9/Materials | Identified exit to Mines 4026 | -9/Materials | Repaired Imp. Heat Sink 4060 | -9/Materials | Repaired Med. Armor Plating 4159 | -9/Materials | First assault squad dispatched 4347 | -9/Materials | Build established: Scavenger-Tank 4373 | -9/Materials | Entered Mines 4377 | -9/Mines | Followed 8R-AWN into the Mines 4419 | -9/Mines | Discovered new exit (range 5) 4427 | -9/Mines | Assisted by bots powering up and referring to "LRC-V3" 4524 | -9/Mines | Discovered new exit (range 5) 4545 | -9/Mines | Entered Exiles 4545 | -9/Exiles | Accompanied by 3 allies 4571 | -9/Exiles | Welcomed by 8R-AWN 4589 | -9/Exiles | Met EX-HEX 4623 | -9/Exiles | Met EX-BIN 4739 | -9/Exiles | Met EX-DEC 4804 | -9/Exiles | Discovered new exit (range 12) 4887 | -9/Exiles | Visited The Gauntlet 5061 | -9/Exiles | Attacked by the Exiles 5070 | -9/Exiles | Allies destroyed EX-BIN 5133 | -9/Exiles | Core integrity fell below 50% 5153 | -9/Exiles | Core integrity fell below 20% 5158 | -9/Exiles | Destroyed by DAS Turret with DAS Cannon Last Messages --------------- 05143_ HV Slug penetrates Machine. 05143_ Machine disabled. 05143_ HV Slug penetrates Machine. 05144_ Wheel+ destroyed. 05144_ Particle Gun+ destroyed. 05144_ Arm. Wheel+ destroyed. 05144_ Knocked back. 05145_ The unstable cave ceiling collapses. 05145_ HV Slug penetrates Wall. 05145_ HV Slug penetrates Earth. 05145_ Penetrated by HV Slug. 05145_ HV Slug penetrates Machine. 05148_ The unstable cave ceiling collapses. 05148_ HV Slug penetrates Machine. 05148_ Acquired 3 matter. 05151_ Penetrated by HV Slug. 05153_ Acquired 8 matter. 05154_ Lgt. Nuclear Core destroyed. 05154_ Com. Wheel+ destroyed. 05154_ Critical hit (Blast). Map ----- +----------------------------------------------------+ | ?????????????????????????????#" #?????? | | ?????????????????????????????#" ## #?????? | | ?????????????????????????????#""""""?# #?##### | | ?????????????????????????????##"###??# ##" "" | | ?????????????????????????????? ??????# # """"" | | ?????????????????????????????????????# # """ | | ????????????????????????????????????## #"""" " | | ????#######?????????????????????????# | | ????#!!! "#?????????????????????????# | | ????# "#?????????????????????????# | | ????# "#?????????????????????????# | | ???## ""#??????????########???????# | | ####" ""#??????????# """#???????#" | | ##" ""#??????????#"" """#???????## | | #"" ###??????????#"" #????????# = | | #????????????#"" #???????## * | | ##???????????#"" "#?????### =% " | | "#???????????# ""#?????# " | | ###?????????#"" ""#?????# # ## | | ##????????### ###?????## # ##? | | "###"" ######???### ###?##### # #?? | | "#?##" """#####X# #"### " ## #?? | | ##??#" """""" #?# | | ##???#"# "" "" ### | | ?????#### %" " % | | ????????### @ | | ??????????### | | ????????????## | | ?????????????## | | ??????????????##" % | | ???????????????#""" " | | ??????????????##" ## | | ??????????????#"" ####### ###""" | | ??????????????#""" ##??????##?##""" | | ?????????????#""" """##???????????#"""" | | ?????????????#""" ""#???????????##"" | | ?????????????#"" ########??####"""" | | ?????????????#""" ## ####""" | | ?????????????#"" """" | | ?????????????##"" | | ??????????????#"""" | | ??????????????## | | ???????????????#" " "" | | ???????????????#"""" ""## ##""" " " | | ???????????????#"" ""#### ######""" | | ???????????????#" """"##??# #????###" | | ???????????????#""" """#??## ####???## | | ???????????????## ""##??#! "!#????? | | ????????????????#"" """##???#" !#????? | | ????????????????##""" ##????#" "#????? | +----------------------------------------------------+ Best States ------------- Heat Dissipation 42 Energy Generation 14 Energy Capacity 280 Matter Stores 300 Matter Capacity 300 Sight Range 16 Terrain Scan Range 16 Terrain Scan Density 10 Armor Coverage 225 Evasion (%) 42 Item Schematics ----------------- Med. Armor Plating | -9/Materials | Scanalyzed Katana | -9/Materials | Scanalyzed Robot Schematics ------------------ None Fabricated ------------ Nothing Repaired ---------- Imp. Heat Sink | 10% | -9/Materials Med. Armor Plating | 70% | -9/Materials Studied --------- Arm. Wheel | -9/Materials | Hacked Com. Wheel | -9/Materials | Hacked Rocket Launcher | -9/Materials | Hacked EMP Blaster | -9/Materials | Hacked Wheel | -9/Materials | Hacked Lgt. Assault Rifle | -9/Materials | Hacked Hvy. Assault Rifle | -9/Materials | Hacked Imp. Ion Engine | -9/Materials | Hacked Particle Gun | -9/Materials | Hacked Plasma Cutter | -9/Materials | Hacked Alien Tech Used ----------------- None Achievements -------------- Follow The Leader Challenges ------------ None Game ------ Seed ActiveHackingClaymores Manual? 0 Play Time 00:36:36 Cumulative 82.1 hours Start 2026.02.17 @ 16:37:08 End 2026.02.17 @ 17:15:07 Sessions 1 Manual Loads 0 Difficulty Rogue Special Mode None Game No. 171 Rogue 171 Adventurer 0 Explorer 0 Win Type - Total 1 Types 1/0/0/0/0/0/0/0/0/0 Lore% 49 Gallery% 37 Achievement% 37 Wizard Run 0 Options --------- Layout 0 ASCII 0 Keyboard 1 Movement Arrows Keybinds 0 Fullscreen 1 Font 18/Smallcaps Map View 76x50 Zoom Use 31% Tactical HUD 1 Map Filters NONE Filters NONE Steam 1 RUN: 95f28437-6127-412a-bb6e-85d128feba2e